[Event "GER-ch Youth-U16 2022"]
[Site "Willingen"]
[Date "2022.06.08"]
[Round "6.16"]
[White "Hecht, Jonas Christian"]
[Black "Weidenhoefer, Max"]
[Result "1-0"]
[ECO "B11"]
[WhiteElo "1884"]
[BlackElo "1945"]
[Annotator "TA"]
[PlyCount "109"]
[EventDate "2022.06.05"]
[EventType "swiss"]
[EventRounds "9"]
[EventCountry "GER"]
[SourceTitle "playchess.com"]
[Source "ChessBase"]
[SourceQuality "1"]
[TimeControl "40/4500+30:900+30"]

{[%evp 21,109,30,38,39,41,26,27,27,25,17,33,9,12,8,11,0,24,0,6,0,0,0,0,0,15,-9,31,16,10,15,79,27,266,264,287,287,277,303,290,220,233,200,224,231,333,231,357,339,317,287,292,295,285,301,285,257,241,243,249,253,431,436,432,329,322,326,304,137,203,175,178,116,158,140,160,164,187,166,275,254,272,269,887,866,1034,896,6303,6227,29976,29966]} 1. e4 {[%emt 0:00:00]} c6 {[%emt 0:00:00]} 2. Nf3 {[%emt 0:00:00]} d5 {[%emt 0:00:00]} 3. Nc3 {[%emt 0:00:00]} Bg4 {[%emt 0:00:00]} 4. h3 {[%emt 0:00:00]} Bxf3 {[%emt 0:00:00]} 5. Qxf3 {[%emt 0:00:00]} e6 {[%emt 0:00:00]} 6. d4 {[%emt 0:00:00]} Nd7 {[%emt 0:00:00][%cal Bb8d7,Bd7f6,Bf6d5][%mdl 32]} 7. Bd3 {[%emt 0:00:00]} dxe4 {[%emt 0:00:00]} 8. Nxe4 {[%emt 0:00:00]} Ngf6 {[%emt 0:00:00]} 9. c3 {[%emt 0:00:00]} Be7 {[%emt 0:00:00]} 10. O-O {[%emt 0:00:00]} O-O {[%emt 0:00:00]} 11. Nxf6+ {[%emt 0:00:00]} Nxf6 {[%emt 0:00:00]} 12. Re1 {[%emt 0:00:00] B17: Caro-Kann: Modern Line (4...Nd7).} Qd5 {[%emt 0:00:00]} 13. Qe2 {[%emt 0:09:49]} Rfd8 {[%emt 0:02:57]} 14. Bc4 {[%emt 0:01:47] [#] White has an edge.} (14. Bf4 {seems wilder.} Bd6 15. Be3 h6 16. c4) 14... Qd7 $146 {[%emt 0:00:14]} ({Predecessor:} 14... Qd6 15. Qf3 Rac8 16. Bf4 Qd7 17. Rad1 Nd5 18. Bc1 c5 19. dxc5 Rxc5 {½-½ (35) Hynd,W (1035)-Soydan,F (800) LSS email 2016}) 15. Bf4 {[%emt 0:04:11]} Nd5 {[%emt 0:24:22]} 16. Be5 {[%emt 0:03:50]} Bd6 {[%emt 0:02:02]} 17. Rad1 {[%emt 0:08:13]} Qc7 {[%emt 0:05:13]} 18. h4 {[%emt 0:12:23]} Rd7 {[%emt 0:02:57]} 19. Qg4 {[%emt 0:02:57][%csl Ge5][%cal Rg4g7]} Bxe5 {[%emt 0:04:00]} 20. dxe5 {[%emt 0:00:30]} Rad8 {[%emt 0:00:42]} 21. h5 {[%emt 0:09:01]} h6 {[%emt 0:11:58]} 22. Qe4 {[%emt 0:12:33]} Ne7 {[%emt 0:00:41]} 23. Bd3 {[%emt 0:01:33][%cal Bc4d3,Bd3c2,Bc2d1,Bd1b3,Bb3e6][%mdl 32]} g6 {[%emt 0:00:34]} 24. Bc2 {[%emt 0:06:08]} Rxd1 {[%emt 0:03:59]} 25. Bxd1 {[%emt 0:00:34]} Qd7 {[%emt 0:04:03]} (25... Rd2 $11) 26. hxg6 {[%emt 0:00:20]} (26. Bc2 $16) 26... fxg6 $2 {[%emt 0:04:16]} (26... Nxg6 $11 27. Bc2 Qe7) 27. Bb3 $18 {[%emt 0:00:15]} Kg7 {[%emt 0:12:19]} 28. Rd1 {[%emt 0:03:01]} Qc8 {[%emt 0:00:30]} 29. Rxd8 {[%emt 0:00:27]} Qxd8 {[%emt 0:00:02]} 30. Bxe6 {[%emt 0:00:13][%mdl 4096] Endgame KQB-KQN} Qd1+ {[%emt 0:01:57]} 31. Kh2 {[%emt 0:00:07]} Qh5+ {[%emt 0:00:02]} 32. Bh3 {[%emt 0:00:21]} Qg5 {[%emt 0:01:35]} (32... g5 $142 33. Qb4 Qf7) 33. Qd4 {[%emt 0:01:25] Strongly threatening g3.} b6 {[%emt 0:01:14]} (33... c5 {keeps fighting.} 34. Qe4 (34. Qxc5 Nc6 $16) 34... Qd2) 34. f4 {[%emt 0:02:38]} Qh4 {[%emt 0:00:28]} 35. g3 {[%emt 0:00:24]} Qh5 {[%emt 0:00:10]} 36. e6+ {[%emt 0:00:06]} Kh7 {[%emt 0:00:38]} 37. Qd7 {[%emt 0:00:08][%csl LRa7,LRe7]} Qe2+ {[%emt 0:00:33]} 38. Bg2 {[%emt 0:02:25]} Qh5+ {[%emt 0:00:22]} 39. Kg1 $1 {[%emt 0:01:08]} Qc5+ {[%emt 0:00:07]} 40. Kf1 {[%emt 0:00:48] b4 is the strong threat.} a5 {[%emt 0:02:26] Prevents b4.} (40... Kg7 41. Bxc6 (41. Qxa7 Qc4+ 42. Ke1 Qxe6+ 43. Kd2 c5 $16) 41... Qc4+ 42. Kf2 Qc5+ 43. Ke1 g5) 41. b3 {[%emt 0:21:56] Active counter play!} ({Less strong is} 41. Bxc6 Kg7 42. Bd5 h5 $18) 41... Kg7 {[%emt 0:19:46] [#]} 42. Bxc6 $1 {[%emt 0:00:00][%mdl 512]} Kf6 {[%emt 0:00:00] [#]} 43. Qe8 {[%emt 0:00:00][%csl Ge6][%cal Re8f7]} Kxe6 {[%emt 0:00:00] [#]} 44. Bb5 {[%emt 0:00:00]} (44. Bd7+ $1 $18 {and the rest is easy.} Kd5 45. Qa8+ Nc6 46. Qg8+ Kd6 47. Bxc6 Kxc6 48. Qxg6+ Kd7 49. Qd3+ Ke7 50. c4) 44... Qc8 {[%emt 0:00:00] [#]} (44... Qd6 $16 {was necessary.} 45. Ke2 Kf5) 45. Bc4+ $1 {[%emt 0:00:00]} ({Resist} 45. f5+ $6 gxf5 46. Bc4+ Kd6 $16) 45... Kd6 {[%emt 0:00:00]} 46. Qf7 {[%emt 0:00:00]} ({White should try} 46. Qxc8 $18 {White wants to mate with Qe6+.} Nxc8 47. Kf2) 46... Qf5 {[%emt 0:00:00]} 47. Qg7 {[%emt 0:00:00]} ({Don't play} 47. Qe8 Nd5 $16) 47... h5 {[%emt 0:00:00]} 48. Qd4+ {[%emt 0:00:00]} Kc7 {[%emt 0:00:00]} 49. Kf2 {[%emt 0:00:00]} Kc6 {[%emt 0:00:00]} (49... Qc2+ $142 50. Be2 Qf5) 50. Qd8 {[%emt 0:00:00]} Qc5+ {[%emt 0:00:00]} 51. Kg2 {[%emt 0:00:00] Black must now prevent Be2.} b5 $2 {[%emt 0:00:00]} (51... Qd6 52. Qxd6+ Kxd6) 52. Be2 {[%emt 0:00:00]} Kb7 {[%emt 0:00:54]} 53. Bf3+ {[%emt 0:00:00]} Ka6 {[%emt 0:00:27]} 54. Qd7 {[%emt 0:00:00][%csl Gf3][%cal Rd7b7]} Qa7 {[%emt 0:02:13] Against Qb7+} 55. Qd6+ {[%emt 0:00:00] Weighted Error Value: White=0.18 (very precise) /Black=0.51} 1-0

[Event "GER-ch Youth-U16 2022"]
[Site "Willingen"]
[Date "2022.06.09"]
[Round "7.1"]
[White "Laux, Dominik"]
[Black "Lutsko, Artem"]
[Result "1/2-1/2"]
[ECO "B90"]
[WhiteElo "2263"]
[BlackElo "2392"]
[Annotator "TA"]
[PlyCount "71"]
[EventDate "2022.06.05"]
[EventType "swiss"]
[EventRounds "9"]
[EventCountry "GER"]
[SourceTitle "playchess.com"]
[Source "ChessBase"]
[SourceQuality "1"]
[TimeControl "40/4500+30:900+30"]

{[%evp 20,71,16,18,26,16,29,28,43,30,31,29,20,20,23,36,29,39,27,34,50,21,23,0,29,0,0,0,0,0,0,0,20,38,41,33,91,0,0,0,0,0,0,0,0,0,0,0,0,0,0,0,0,0]} 1. e4 {[%emt 0:00:00]} c5 {[%emt 0:00:00]} 2. Nf3 {[%emt 0:00:00]} d6 {[%emt 0:00:00]} 3. d4 {[%emt 0:00:00]} cxd4 {[%emt 0:00:00]} 4. Nxd4 {[%emt 0:00:00]} Nf6 {[%emt 0:00:00]} 5. Nc3 {[%emt 0:00:00]} a6 {[%emt 0:00:00]} 6. Be3 {[%emt 0:00:00]} e5 {[%emt 0:00:00]} 7. Nb3 {[%emt 0:00:00]} Be7 {[%emt 0:00:00]} 8. f3 {[%emt 0:00:00]} Be6 {[%emt 0:00:00]} 9. Qd2 {[%emt 0:00:00]} h5 {[%emt 0:00:00]} 10. Nd5 {[%emt 0:00:00]} Nxd5 {[%emt 0:00:00]} 11. exd5 {[%emt 0:00:00]} Bf5 {[%emt 0:00:00] B90: Sicilian Najdorf: Unusual White 6th moves, 6 Be3 Ng4 and 6 Be3 e5.} 12. Be2 {[%emt 0:00:00]} a5 $1 {[%emt 0:00:00][%mdl 4] is currently scoring better than 12...Nd7.} 13. Bb5+ {[%emt 0:00:00]} Bd7 {[%emt 0:00:00] White has an edge.} 14. a4 {[%emt 0:00:00] [#]} O-O $146 {[%emt 0:00:00]} ({Predecessor:} 14... Bh4+ 15. g3 Be7 16. O-O O-O 17. Kh1 b6 18. Qe2 Bxb5 19. axb5 Nd7 20. Nd2 f5 {½-½ (38) Weber Widmer,D (2336)-Roberts,A (2357) ICCF email 2019}) 15. O-O {[%emt 0:00:00]} Bxb5 {[%emt 0:00:00]} 16. axb5 {[%emt 0:00:00][%cal Rb3a5]} a4 {[%emt 0:00:00]} 17. Qb4 {[%emt 0:00:00]} Nd7 {[%emt 0:00:00]} 18. Rxa4 {[%emt 0:00:00]} Rxa4 {[%emt 0:00:00]} 19. Qxa4 {[%emt 0:00:00]} Bg5 $1 {[%emt 0:00:00]} 20. Bxg5 {[%emt 0:11:28]} Qxg5 {[%emt 0:00:00]} 21. Qa7 {[%emt 0:11:56]} Nf6 {[%emt 0:00:00]} 22. Qxb7 {[%emt 0:10:01]} (22. c4 $5 {[%cal Rb3a5]}) 22... Qe3+ {[%emt 0:00:00]} 23. Rf2 $1 {[%emt 0:02:02]} e4 {[%emt 0:15:16]} 24. Qc6 {[%emt 0:10:47]} Rb8 {[%emt 0:38:50]} 25. Kf1 {[%emt 0:12:27]} exf3 {[%emt 0:02:23]} 26. gxf3 {[%emt 0:00:59]} Re8 {[%emt 0:03:26][%cal Of6g4] [#] ...Ng4! is the strong threat.} 27. Qc3 {[%emt 0:09:53] Strongly threatening Qxe3.} ({Wrong is} 27. Qxd6 $2 {[#]} Ng4 $1 28. Qg3 (28. fxg4 $2 {is a self mate.} Qh3+ 29. Rg2 Qf3+ 30. Rf2 Qh1#) 28... Qe1+ 29. Kg2 Nxf2 $19) 27... Qb6 {[%emt 0:07:39]} (27... Qe7 $1 $14) 28. Re2 {[%emt 0:04:39]} (28. Qa5 $16 Qb7 29. c4) 28... Qxb5 {[%emt 0:01:00] The position is equal.} 29. Nd4 {[%emt 0:00:05]} Qa6 {[%emt 0:00:36]} 30. Qc6 {[%emt 0:01:44]} Qa1+ {[%emt 0:00:15]} 31. Kf2 {[%emt 0:01:41] Active counter play!} Rxe2+ {[%emt 0:00:58]} 32. Kxe2 {[%emt 0:02:25]} Qxb2 {[%emt 0:00:03]} 33. Qc8+ {[%emt 0:02:43]} Kh7 {[%emt 0:00:04]} 34. Qf5+ {[%emt 0:00:05]} Kg8 {[%emt 0:00:37]} 35. Qc8+ {[%emt 0:00:18]} Kh7 {[%emt 0:00:04]} 36. Qf5+ {[%emt 0:00:36] Weighted Error Value: White=0.08 (flawless) /Black=0.07 (flawless)} 1/2-1/2

[Event "GER-ch Youth-U16 2022"]
[Site "Willingen"]
[Date "2022.06.09"]
[Round "7.2"]
[White "Foerster-Yialamas, Lucas"]
[Black "Bakiev, Diyor"]
[Result "1/2-1/2"]
[ECO "B12"]
[WhiteElo "2117"]
[BlackElo "2157"]
[Annotator "TA"]
[PlyCount "87"]
[EventDate "2022.06.05"]
[EventType "swiss"]
[EventRounds "9"]
[EventCountry "GER"]
[SourceTitle "playchess.com"]
[Source "ChessBase"]
[SourceQuality "1"]
[TimeControl "40/4500+30:900+30"]

{[%evp 9,87,6,7,14,13,11,12,0,12,9,10,0,0,0,6,11,12,0,0,-22,0,0,0,-43,-38,-34,-30,-37,-39,-44,-16,-11,0,0,0,-4,0,-28,-16,-26,-25,-39,0,-15,14,-56,-30,-33,-35,-27,-27,-36,-29,-32,-9,-37,0,0,0,0,0,0,0,0,0,4,85,85,73,12,8,0,78,0,0,0,0,0,0,0]} 1. e4 {[%emt 0:00:00]} c6 {[%emt 0:00:00]} 2. d4 {[%emt 0:00:00]} d5 {[%emt 0:00:00]} 3. e5 {[%emt 0:00:00]} Bf5 {[%emt 0:00:00]} 4. h4 {[%emt 0:00:00]} h5 {[%emt 0:00:00]} 5. Bd3 {[%emt 0:00:00]} Bxd3 {[%emt 0:00:00]} 6. Qxd3 {[%emt 0:00:00][%cal Oe5e6] B12: Caro-Kann: Advance Variation.} Qa5+ {[%emt 0:00:00]} 7. Nd2 {[%emt 0:00:00][%cal Oe5e6]} e6 {[%emt 0:00:00]} 8. Ngf3 {[%emt 0:00:00]} Nh6 {[%emt 0:00:00]} 9. O-O {[%emt 0:00:00]} Nf5 {[%emt 0:00:00]} 10. Nb3 $1 {[%emt 0:00:00][%mdl 4] is currently scoring better than 10.c4.} Qa6 {[%emt 0:00:00]} 11. Qd1 {[%emt 0:00:00]} b6 {[%emt 0:00:00]} 12. Bg5 {[%emt 0:00:00]} c5 {[%emt 0:00:00] [#]} 13. c3 $146 {[%emt 0:00:00]} ({Predecessor:} 13. dxc5 Bxc5 14. c3 Nc6 15. Nxc5 bxc5 16. Re1 Rc8 17. b3 Rc7 18. Rc1 Qxa2 19. Ra1 {½-½ (25) Dubov,D (2714)-Anton Guijarro,D (2669) Terme Catez 2021}) 13... Nc6 {[%emt 0:00:00]} 14. Be3 {[%emt 0:00:00]} cxd4 {[%emt 0:16:16]} 15. Nbxd4 {[%emt 0:00:00]} Ncxd4 {[%emt 0:06:23]} 16. Bxd4 {[%emt 0:02:05]} Be7 {[%emt 0:02:30]} 17. g3 {[%emt 0:01:01]} Rc8 {[%emt 0:05:53]} 18. a4 {[%emt 0:08:18]} O-O {[%emt 0:15:08]} 19. Qd2 {[%emt 0:03:36]} Qc4 {[%emt 0:03:26]} 20. a5 {[%emt 0:02:38]} Nxd4 {[%emt 0:02:53]} 21. Nxd4 {[%emt 0:02:06]} bxa5 {[%emt 0:11:26]} 22. Rxa5 {[%emt 0:03:07]} Qc7 {[%emt 0:00:25][%csl LRa5,LRe5]} 23. Ra6 {[%emt 0:03:26]} Qxe5 {[%emt 0:02:41]} 24. Rxa7 {[%emt 0:11:32]} Bc5 {[%emt 0:00:58]} 25. Ra4 {[%emt 0:01:58]} Qf6 {[%emt 0:02:16]} 26. Qd3 {[%emt 0:04:20]} Bb6 {[%emt 0:02:32][%cal Bc5b6,Bb6c7,Bc7d6][%mdl 32]} 27. Ne2 {[%emt 0:10:34]} (27. Nf3 $11) 27... Rcd8 {[%emt 0:03:42]} 28. Nf4 {[%emt 0:05:49]} g6 {[%emt 0:00:49]} 29. Ra6 {[%emt 0:00:28]} Rd6 {[%emt 0:02:00]} 30. Kg2 {[%emt 0:13:40]} Rfd8 {[%emt 0:01:15]} 31. Qb5 {[%emt 0:04:03]} Bc7 {[%emt 0:04:59] [#] And now ...Rb8 would win.} 32. Ra7 {[%emt 0:01:47]} R6d7 {[%emt 0:00:48]} (32... e5 $5 {[%cal Rc7b6]} 33. Ne6 (33. Rxc7 exf4 34. Qe2 d4 $15) 33... Rxe6 34. Rxc7 Rb6 $15) 33. Rfa1 {[%emt 0:04:14]} Qe7 {[%emt 0:00:40]} 34. Nd3 {[%emt 0:00:37] aiming for Nc5.} Bd6 {[%emt 0:00:45] Prevents Nc5.} 35. Ra8 {[%emt 0:01:30]} Kh7 {[%emt 0:01:05]} 36. b4 {[%emt 0:02:02]} Rc7 {[%emt 0:02:03]} 37. Qb6 {[%emt 0:01:05]} e5 {[%emt 0:01:27]} (37... Kg7 $11) 38. Rxd8 $16 {[%emt 0:01:19] White is more active.} Qxd8 {[%emt 0:00:04]} 39. Ra6 {[%emt 0:00:28]} ({White should play} 39. Ra5 $16 e4 40. Rxd5 exd3 41. Rxd6 (41. Qxd6 Qxd6 42. Rxd6 Rxc3 $14) 41... Qa8+ 42. Kh2 Rxc3 43. Qe3) 39... Rd7 {[%emt 0:01:13]} 40. Qc6 {[%emt 0:01:38]} Qe7 {[%emt 0:01:15] [#]} (40... e4 $11 {remains equal.} 41. Nc5 Bxc5 42. Qxc5 (42. bxc5 Qe7 $11) 42... d4) 41. Qxd5 {[%emt 0:00:00]} (41. Ra8 $1 $16 {Black must now prevent Qc8.} Rc7 42. Qxd5) 41... Bxb4 $1 $11 {[%emt 0:00:00] The position is equal.} 42. Qc4 {[%emt 0:00:00]} Bd6 {[%emt 0:00:00]} 43. Nb4 {[%emt 0:01:11]} Bxb4 {[%emt 0:00:06]} 44. Qxb4 {[%emt 0:00:41] Weighted Error Value: White=0.15 (very precise) /Black=0.13 (very precise)} 1/2-1/2

[Event "GER-ch Youth-U16 2022"]
[Site "Willingen"]
[Date "2022.06.09"]
[Round "7.3"]
[White "Petrovskyi, Vadym"]
[Black "Sidletskyi, Ivan"]
[Result "1/2-1/2"]
[ECO "C11"]
[WhiteElo "2330"]
[BlackElo "2084"]
[Annotator "TA"]
[PlyCount "65"]
[EventDate "2022.06.05"]
[EventType "swiss"]
[EventRounds "9"]
[EventCountry "GER"]
[SourceTitle "playchess.com"]
[Source "ChessBase"]
[SourceQuality "1"]
[TimeControl "40/4500+30:900+30"]

{[%evp 20,65,0,0,0,0,14,13,27,0,0,-7,16,-20,-22,-12,0,0,0,0,0,0,0,0,0,-6,-8,-6,0,-17,0,0,0,0,0,0,0,0,0,0,0,0,0,0,0,0,0,0]} 1. e4 {[%emt 0:00:00]} e6 {[%emt 0:00:00]} 2. d4 {[%emt 0:00:00]} d5 {[%emt 0:00:00]} 3. Nc3 {[%emt 0:00:00]} Nf6 {[%emt 0:00:00]} 4. e5 {[%emt 0:00:00]} Nfd7 {[%emt 0:00:00]} 5. f4 {[%emt 0:00:00]} c5 {[%emt 0:00:00]} 6. Nf3 {[%emt 0:00:00]} Nc6 {[%emt 0:00:00]} 7. Be3 {[%emt 0:00:00]} cxd4 {[%emt 0:00:00]} 8. Nxd4 {[%emt 0:00:00]} Qb6 {[%emt 0:00:00]} 9. Qd2 {[%emt 0:12:33]} Qxb2 {[%emt 0:00:00]} 10. Rb1 {[%emt 0:00:10]} Qa3 {[%emt 0:00:00]} 11. Bb5 {[%emt 0:22:02]} Nxd4 {[%emt 0:00:00] C11: French: Classical System: 4 e5 and 4 Bg5 dxe4.} 12. Bxd4 {[%emt 0:01:33]} ({Of course not} 12. Qxd4 a6 13. Bxd7+ Bxd7 14. Rxb7 Rc8 $17) 12... a6 {[%emt 0:00:00]} 13. Bxd7+ {[%emt 0:10:06]} Bxd7 {[%emt 0:00:00]} 14. Rxb7 {[%emt 0:02:29][%cal Of4f5]} (14. Rb3 $5 {[%cal Rb3a3]} Qe7 15. Rxb7 $14) 14... Bb4 {[%emt 0:00:00] And now ...Rc8 would win. The position is equal.} 15. O-O {[%emt 0:03:16] aiming for Rb1.} Rc8 {[%emt 0:00:00][%cal Rb4c3]} 16. Nb1 {[%emt 0:01:46][%csl LRa3,LRb4][%cal Bc3b1,Bb1a3,Ba3c2][%mdl 32]} (16. Rf3 $5 {[%cal Rf4f5]}) 16... Bxd2 {[%emt 0:03:35]} 17. Nxa3 {[%emt 0:00:01]} Ke7 {[%emt 0:12:36] [#]} 18. c4 $146 {[%emt 0:15:33]} ({Predecessor:} 18. g3 Bc3 19. Rd1 Bxd4+ 20. Rxd4 Rc3 21. Rb3 Rhc8 22. Kf2 Rxc2+ 23. Nxc2 Rxc2+ 24. Ke3 Rxa2 {1-0 (56) Agopov,M (2436)-Jarvenpaa,J (2068) Jyvaskyla 2007}) 18... dxc4 {[%emt 0:02:57]} 19. Rd1 {[%emt 0:00:13]} c3 {[%emt 0:05:23]} (19... Bxf4 $2 {[#]} 20. Bc5+ $1 {[%mdl 512]} (20. Bb6 Bxe5 21. Rdxd7+ Kf6 $16) 20... Ke8 21. Rbxd7 $18) 20. Bxc3 {[%emt 0:01:13][%mdl 64] [#] Remove Defender} Rxc3 {[%emt 0:02:13]} 21. Rxd2 {[%emt 0:00:01]} Rd8 {[%emt 0:00:21]} 22. Nc2 {[%emt 0:03:47]} Ke8 {[%emt 0:05:42]} 23. Ne1 {[%emt 0:01:54]} Rcc8 {[%emt 0:04:56]} 24. Nf3 {[%emt 0:02:13]} Bc6 {[%emt 0:01:56]} (24... Rc4 {with more complications.} 25. f5 exf5 26. Ng5 h5) 25. Rxd8+ {[%emt 0:01:04]} Rxd8 {[%emt 0:00:17]} 26. Ra7 {[%emt 0:01:16]} Bxf3 {[%emt 0:04:05]} 27. gxf3 $11 {[%emt 0:00:02][%mdl 4096] Endgame KR-KR} Rd1+ {[%emt 0:00:11]} 28. Kf2 {[%emt 0:00:02]} Rd2+ {[%emt 0:00:10]} 29. Kg3 {[%emt 0:00:02]} Rxa2 {[%emt 0:00:14]} 30. Ra8+ {[%emt 0:00:03]} Ke7 {[%emt 0:00:19]} 31. Ra7+ {[%emt 0:00:04]} Ke8 {[%emt 0:00:11]} 32. Ra8+ {[%emt 0:00:04]} Ke7 {[%emt 0:00:06]} 33. Ra7+ {[%emt 0:00:04] An even fight not without its subleties.  Weighted Error Value: White=0.05 (flawless) /Black=0.04 (flawless)} 1/2-1/2

[Event "GER-ch Youth-U16 2022"]
[Site "Willingen"]
[Date "2022.06.09"]
[Round "7.4"]
[White "Farokhi, Keyvan"]
[Black "Jaskulski, Jan"]
[Result "1/2-1/2"]
[ECO "D11"]
[WhiteElo "2360"]
[BlackElo "1727"]
[Annotator "TA"]
[PlyCount "120"]
[EventDate "2022.06.05"]
[EventType "swiss"]
[EventRounds "9"]
[EventCountry "GER"]
[SourceTitle "playchess.com"]
[Source "ChessBase"]
[SourceQuality "1"]
[TimeControl "40/4500+30:900+30"]

{[%evp 15,120,28,34,-9,-15,-11,-10,-14,-2,-3,15,-1,23,7,50,29,95,93,95,97,98,60,53,56,60,50,66,34,61,75,74,61,65,52,47,0,43,43,47,45,48,9,44,47,54,53,62,50,54,44,48,45,111,67,70,64,72,66,83,83,655,85,82,0,0,0,0,0,0,0,0,0,0,0,0,-8,-8,-8,-8,-8,-8,-8,-8,-42,-42,-42,-42,-42,-42,-43,0,0,0,0,0,0,0,0,0,0,0,0,0,0,0,0,0]} 1. d4 {[%emt 0:00:00]} d5 {[%emt 0:00:00]} 2. Nf3 {[%emt 0:00:00]} Nf6 {[%emt 0:00:00]} 3. c4 {[%emt 0:00:00]} c6 {[%emt 0:00:00]} 4. e3 {[%emt 0:00:00]} e6 {[%emt 0:00:00]} 5. Bd3 {[%emt 0:00:00]} Nbd7 {[%emt 0:00:00]} 6. Nbd2 {[%emt 0:00:00]} Bd6 {[%emt 0:00:00]} 7. O-O {[%emt 0:00:00]} O-O {[%emt 0:00:00]} 8. e4 {[%emt 0:00:00]} e5 {[%emt 0:00:00]} 9. c5 {[%emt 0:04:53] D30: Queen's Gambit Declined: Systems without Nc3.} Bc7 {[%emt 0:01:28]} 10. exd5 {[%emt 0:00:17]} Nxd5 {[%emt 0:02:11] [#]} 11. Nxe5 $146 {[%emt 0:00:57]} ({Predecessor:} 11. Nb3 exd4 12. Nfxd4 Ne5 13. Bb1 Qh4 14. f4 Ng4 15. Nf3 Qh5 16. Qe1 Nxf4 17. Bxf4 Bxf4 {0-1 (23) El Nabawy,N (1557)-Bourkhis,A (1917) Sousse 2021}) 11... Nxe5 {[%emt 0:21:51]} 12. dxe5 {[%emt 0:00:13]} Nf4 {[%emt 0:00:06]} 13. Be4 {[%emt 0:06:24]} Bxe5 {[%emt 0:03:50]} 14. Nc4 {[%emt 0:01:58]} Bc7 {[%emt 0:01:12]} 15. Nd6 {[%emt 0:04:44]} Nd5 {[%emt 0:15:19]} (15... Bxd6 $11 {keeps the balance.} 16. cxd6 Ng6) 16. Bxd5 $16 {[%emt 0:09:12]} (16. Qh5 Nf6 17. Qh4 Nxe4 18. Qxe4 Bxd6 19. cxd6 Qxd6 $17) 16... cxd5 {[%emt 0:01:34]} 17. Qxd5 {[%emt 0:00:16]} Be6 {[%emt 0:00:15]} 18. Qxb7 {[%emt 0:10:14] 0x0.001761e8add8dp-1022s more active pieces. The black rooks are badly placed.} Bxd6 {[%emt 0:00:11]} 19. cxd6 {[%emt 0:00:02]} Qxd6 {[%emt 0:00:07]} 20. Be3 {[%emt 0:01:55]} Bd5 {[%emt 0:05:47]} ({Weaker is} 20... Rab8 21. Qxa7 Ra8 22. Qc5 Qxc5 23. Bxc5 $16) 21. Qb5 {[%emt 0:03:37]} Rfd8 {[%emt 0:08:52]} 22. Rfd1 {[%emt 0:07:10]} Qe6 {[%emt 0:08:40]} 23. Qd3 {[%emt 0:14:59]} Rd7 {[%emt 0:05:59]} 24. Rd2 {[%emt 0:12:09]} Rad8 {[%emt 0:01:57]} 25. Qf1 {[%emt 0:01:33]} (25. Qc2 $14) 25... h6 {[%emt 0:06:30]} (25... Bxa2 $5 {[%cal Rd7d2]} 26. Rxd7 Rxd7 $14) 26. b3 {[%emt 0:00:40]} Bc6 {[%emt 0:01:06]} 27. Rxd7 {[%emt 0:03:10]} Rxd7 {[%emt 0:00:01]} 28. Re1 {[%emt 0:00:42]} Qd5 {[%emt 0:01:38] [#] Strongly threatening ...Bb5.} 29. f3 {[%emt 0:00:14]} Qa5 {[%emt 0:00:40]} 30. Qf2 {[%emt 0:00:39]} a6 {[%emt 0:00:19]} 31. h4 {[%emt 0:01:12]} Rd3 {[%emt 0:00:22]} 32. Rc1 {[%emt 0:01:45]} Qd5 {[%emt 0:00:14]} 33. Bf4 {[%emt 0:01:40]} Bb7 {[%emt 0:01:10]} (33... Rd1+ $14 34. Rxd1 Qxd1+ 35. Kh2 Qd5) 34. Kh2 {[%emt 0:01:00]} Bc6 {[%emt 0:00:23]} 35. Qc5 {[%emt 0:00:40]} Qd8 {[%emt 0:00:42]} 36. Bg3 {[%emt 0:00:37]} Bb7 {[%emt 0:00:26]} 37. Qc7 {[%emt 0:00:26]} Qd5 {[%emt 0:00:16][%mdl 8192]} (37... Rd7 $16 38. Qxd8+ Rxd8) 38. Qb8+ $2 {[%emt 0:00:32]} (38. Rc5 $18 {is the precise move to win.} Qd4 39. Qb8+ (39. Rf5 Qd7 $16) 39... Kh7 {[#]} 40. Qxb7 $1) 38... Kh7 {[%emt 0:00:11]} 39. Qe5 {[%emt 0:00:36]} ({Better is} 39. Rc7 $16 Bc6 40. Qb6) 39... Qxe5 {[%emt 0:00:43]} 40. Bxe5 $11 {[%emt 0:00:02][%mdl 4096] Endgame KRB-KRB} Rd2 {[%emt 0:00:09][%csl LRa2,LRf3]} 41. Rc7 {[%emt 0:00:00]} Bxf3 {[%emt 0:11:35]} 42. Rxf7 {[%emt 0:00:00]} Rxg2+ {[%emt 0:00:03]} 43. Kh3 {[%emt 0:00:00]} Bd5 {[%emt 0:00:24]} 44. Ra7 {[%emt 0:00:00]} Rg6 $1 {[%emt 0:00:33]} 45. h5 {[%emt 0:00:00]} Rg5 {[%emt 0:00:28][%csl LRe5,LRh5]} 46. Bf6 {[%emt 0:00:00]} Be6+ {[%emt 0:02:25]} 47. Kh2 {[%emt 0:00:00]} ({But not} 47. Kh4 $2 Rg4+ 48. Kh3 Rg6+ 49. Kh4 Rxf6 $19) 47... Rxh5+ {[%emt 0:00:14]} 48. Kg3 {[%emt 0:00:00]} Kg6 {[%emt 0:00:14]} 49. Bd8 {[%emt 0:03:29]} Rd5 {[%emt 0:01:35]} 50. Rxa6 {[%emt 0:00:24]} Kf5 {[%emt 0:01:02]} 51. Bb6 {[%emt 0:06:47]} g5 {[%emt 0:00:29]} 52. Be3 {[%emt 0:00:25]} h5 {[%emt 0:00:24] aiming for ...h4+.} 53. Bxg5 {[%emt 0:01:23] The position is equal.} Bc8 {[%emt 0:02:22]} 54. Ra8 {[%emt 0:00:37]} Kxg5 {[%emt 0:00:42]} 55. Rxc8 {[%emt 0:00:07] KR-KR} Rd3+ {[%emt 0:00:04]} 56. Kf2 {[%emt 0:00:35]} Rd2+ {[%emt 0:00:12]} 57. Kf3 {[%emt 0:00:11]} Rxa2 {[%emt 0:00:04]} 58. b4 {[%emt 0:01:47]} Ra3+ {[%emt 0:00:49]} 59. Ke4 {[%emt 0:00:55]} Rb3 {[%emt 0:00:11]} 60. Rg8+ {[%emt 0:00:09]} Kh4 {[%emt 0:00:14] Weighted Error Value: White=0.25 (precise) /Black=0.25 (precise)} 1/2-1/2